[Event "27th OIBM 2024"]
[Site "Gmund am Tegernsee"]
[Date "2024.10.27"]
[Round "2.38"]
[White "Serbes, Gokay"]
[Black "Berry, Neil"]
[Result "0-1"]
[ECO "C68"]
[WhiteElo "2013"]
[BlackElo "2248"]
[Annotator "RC"]
[PlyCount "74"]
[EventDate "2024.09.16"]
[EventType "swiss"]
[EventCountry "GER"]
[SourceTitle "playchess.com"]
[Source "ChessBase"]
[SourceQuality "1"]
[TimeControl "40/5400+30:1800+30"]

1. e4 {[%emt 0:00:09]} e5 {[%emt 0:00:11]} 2. Nf3 {[%emt 0:00:23]} Nc6 {[%emt 0:00:11]} 3. Bb5 {[%emt 0:00:15]} a6 {[%emt 0:00:25]} 4. Bxc6 {[%emt 0:00:34]} dxc6 {[%emt 0:00:08]} 5. O-O {[%emt 0:00:08]} Qf6 {[%emt 0:01:21]} 6. d4 {[%emt 0:05:06]} exd4 {[%emt 0:00:40]} 7. Bg5 {[%emt 0:07:08]} Qd6 {[%emt 0:00:36]} 8. Qxd4 {[%emt 0:01:51]} Qxd4 {[%emt 0:00:26]} 9. Nxd4 {[%emt 0:00:03]} Bd7 {[%emt 0:00:12]} 10. Nd2 {[%emt 0:03:24]} Ne7 {[%emt 0:00:45]} 11. Rad1 {[%emt 0:05:04]} c5 {[%emt 0:12:18]} 12. N4b3 {[%emt 0:04:37]} Nc6 {[%emt 0:00:59]} 13. c3 {[%emt 0:02:06]} Bg4 {[%emt 0:09:04]} 14. f3 {[%emt 0:01:03]} Be6 {[%emt 0:00:08]} 15. Be3 {[%emt 0:05:06]} b6 {[%emt 0:01:00]} 16. f4 {[%emt 0:04:50]} f5 {[%emt 0:06:37]} 17. Nf3 {[%emt 0:20:40]} Be7 {[%emt 0:11:50]} 18. Ng5 {[%emt 0:09:14]} Bc4 {[%emt 0:14:17]} 19. Rfe1 {[%emt 0:01:36]} h6 {[%emt 0:04:24]} 20. Nh3 {[%emt 0:01:33]} fxe4 {[%emt 0:06:29]} 21. Nf2 {[%emt 0:01:23]} Rd8 {[%emt 0:01:31]} 22. Rxd8+ {[%emt 0:02:13]} Kxd8 {[%emt 0:02:21]} 23. Nxe4 {[%emt 0:01:27]} Re8 {[%emt 0:00:33]} 24. Ned2 {[%emt 0:04:55]} Be6 {[%emt 0:01:27]} 25. g3 {[%emt 0:03:42]} a5 {[%emt 0:00:49]} 26. Bf2 {[%emt 0:02:42]} Bf5 {[%emt 0:01:32]} 27. Nc4 {[%emt 0:02:07]} a4 {[%emt 0:07:32]} 28. Nbd2 {[%emt 0:00:56]} Kd7 {[%emt 0:03:17]} 29. Nf3 {[%emt 0:02:31]} Bf6 {[%emt 0:02:07]} 30. Nce5+ {[%emt 0:02:54]} Nxe5 {[%emt 0:00:32]} 31. fxe5 {[%emt 0:00:49]} Be7 {[%emt 0:02:00]} 32. a3 {[%emt 0:00:56]} Ke6 {[%emt 0:01:03]} 33. Be3 {[%emt 0:02:05]} Rd8 {[%emt 0:01:16]} 34. Kg2 {[%emt 0:03:07]} Be4 {[%emt 0:00:28]} 35. Bf4 {[%emt 0:00:40]} Bc6 {[%emt 0:00:31]} 36. h4 {[%emt 0:00:41]} g5 {[%emt 0:00:37]} 37. hxg5 {[%emt 0:00:26]} hxg5 {[%emt 0:00:05]} 0-1

[Event "27th OIBM 2024"]
[Site "Gmund am Tegernsee"]
[Date "2024.10.27"]
[Round "2.39"]
[White "Jahnz, Fabian"]
[Black "Kannenberg, Karl-Heinz"]
[Result "1/2-1/2"]
[ECO "B12"]
[WhiteElo "2248"]
[BlackElo "2111"]
[Annotator "RC"]
[PlyCount "35"]
[EventDate "2024.09.16"]
[EventType "swiss"]
[EventCountry "GER"]
[SourceTitle "playchess.com"]
[Source "ChessBase"]
[SourceQuality "1"]
[TimeControl "40/5400+30:1800+30"]

1. e4 {[%emt 0:00:04]} c6 {[%emt 0:00:06]} 2. d4 {[%emt 0:00:18]} d5 {[%emt 0:00:09]} 3. e5 {[%emt 0:00:22]} Bf5 {[%emt 0:00:17]} 4. h4 {[%emt 0:00:43]} h5 {[%emt 0:00:27]} 5. Bd3 {[%emt 0:00:27]} Bxd3 {[%emt 0:00:35]} 6. Qxd3 {[%emt 0:00:09]} e6 {[%emt 0:00:14]} 7. Nf3 {[%emt 0:00:47]} Qa5+ {[%emt 0:00:49]} 8. Nbd2 {[%emt 0:00:29]} Nd7 {[%emt 0:11:37]} 9. O-O {[%emt 0:01:01]} c5 {[%emt 0:00:43]} 10. c4 {[%emt 0:04:02]} cxd4 {[%emt 0:06:32]} 11. Qxd4 {[%emt 0:13:15]} Ne7 {[%emt 0:06:48]} 12. Rd1 {[%emt 0:08:24]} Nb6 {[%emt 0:18:34]} 13. Qd3 {[%emt 0:05:21]} Qc5 {[%emt 0:04:33]} 14. b3 {[%emt 0:13:32]} Nc6 {[%emt 0:04:08]} 15. cxd5 {[%emt 0:15:20]} Qxd5 {[%emt 0:03:49]} 16. Qe2 {[%emt 0:00:25]} Rd8 {[%emt 0:03:51]} 17. Bb2 {[%emt 0:01:13]} Qd3 {[%emt 0:01:07]} 18. Qxd3 {[%emt 0:12:41]} 1/2-1/2

[Event "27th OIBM 2024"]
[Site "Gmund am Tegernsee"]
[Date "2024.10.27"]
[Round "2.40"]
[White "Hund, Sarah"]
[Black "Toktomushev, Teimur"]
[Result "1-0"]
[ECO "B22"]
[WhiteElo "2008"]
[BlackElo "2246"]
[Annotator "RC"]
[PlyCount "69"]
[EventDate "2024.09.16"]
[EventType "swiss"]
[EventCountry "GER"]
[SourceTitle "playchess.com"]
[Source "ChessBase"]
[SourceQuality "1"]
[TimeControl "40/5400+30:1800+30"]

1. e4 {[%emt 0:00:02]} c5 {[%emt 0:00:07]} 2. c3 {[%emt 0:00:07]} d5 {[%emt 0:00:10]} 3. exd5 {[%emt 0:00:08]} Qxd5 {[%emt 0:00:11]} 4. d4 {[%emt 0:00:13]} Nf6 {[%emt 0:00:11]} 5. Nf3 {[%emt 0:00:28]} e6 {[%emt 0:00:11]} 6. Na3 {[%emt 0:00:29]} Nc6 {[%emt 0:00:12]} 7. Be3 {[%emt 0:00:28]} cxd4 {[%emt 0:00:16]} 8. Nb5 {[%emt 0:00:32]} Qd7 {[%emt 0:07:26]} 9. Nbxd4 {[%emt 0:01:48]} Be7 {[%emt 0:00:47]} 10. Nxc6 {[%emt 0:04:58]} Qxc6 {[%emt 0:00:28]} 11. Ne5 {[%emt 0:01:55]} Qd5 {[%emt 0:01:46]} 12. Qa4+ {[%emt 0:02:19]} Nd7 {[%emt 0:01:50]} 13. Nf3 {[%emt 0:04:18]} O-O {[%emt 0:02:25]} 14. Rd1 {[%emt 0:01:40]} Nc5 {[%emt 0:01:26]} 15. Qb5 {[%emt 0:07:27]} Qf5 {[%emt 0:32:40]} 16. Be2 {[%emt 0:17:54]} a6 {[%emt 0:21:01]} 17. Qb6 {[%emt 0:05:40]} Na4 {[%emt 0:06:12]} 18. Qc7 {[%emt 0:07:51]} Bf6 {[%emt 0:01:07]} 19. Bc1 {[%emt 0:05:23]} Qc5 {[%emt 0:07:51]} 20. Qg3 {[%emt 0:03:09]} e5 {[%emt 0:09:07]} 21. O-O {[%emt 0:03:34]} Bf5 {[%emt 0:02:30]} 22. Nh4 {[%emt 0:03:25]} Be6 {[%emt 0:01:14]} 23. Bd3 {[%emt 0:02:19]} Bc4 {[%emt 0:02:20]} 24. Bh6 {[%emt 0:13:48]} Bxd3 {[%emt 0:00:26]} 25. Rxd3 {[%emt 0:00:17]} Rfd8 {[%emt 0:00:34]} 26. Rf3 {[%emt 0:01:22]} Qb6 {[%emt 0:00:30]} 27. b3 {[%emt 0:02:59]} Nc5 {[%emt 0:00:29]} 28. Be3 {[%emt 0:00:22]} Kh8 {[%emt 0:00:32]} 29. b4 {[%emt 0:02:50]} Qe6 {[%emt 0:00:29]} 30. Bxc5 {[%emt 0:00:34]} b6 {[%emt 0:00:30]} 31. Be3 {[%emt 0:00:59]} e4 {[%emt 0:00:15]} 32. Rxf6 {[%emt 0:01:09]} gxf6 {[%emt 0:00:04]} 33. Qf4 {[%emt 0:00:52]} Rac8 {[%emt 0:00:57]} 34. Bd4 {[%emt 0:00:36]} Rc6 {[%emt 0:00:12]} 35. Nf5 {[%emt 0:00:37]} 1-0

[Event "27th OIBM 2024"]
[Site "Gmund am Tegernsee"]
[Date "2024.10.27"]
[Round "2.41"]
[White "Raupp, Thomas"]
[Black "Ramme, Christoph"]
[Result "1/2-1/2"]
[ECO "E20"]
[WhiteElo "2245"]
[BlackElo "2110"]
[Annotator "RC"]
[PlyCount "87"]
[EventDate "2024.09.16"]
[EventType "swiss"]
[EventCountry "GER"]
[SourceTitle "playchess.com"]
[Source "ChessBase"]
[SourceQuality "1"]
[TimeControl "40/5400+30:1800+30"]

1. d4 {[%emt 0:00:11]} Nf6 {[%emt 0:00:06]} 2. c4 {[%emt 0:00:07]} e6 {[%emt 0:00:09]} 3. Nc3 {[%emt 0:00:14]} Bb4 {[%emt 0:00:17]} 4. f3 {[%emt 0:00:44]} c5 {[%emt 0:01:30]} 5. d5 {[%emt 0:00:22]} b5 {[%emt 0:00:48]} 6. e4 {[%emt 0:00:11]} O-O {[%emt 0:00:46]} 7. Nh3 {[%emt 0:06:18]} bxc4 {[%emt 0:00:55]} 8. Bxc4 {[%emt 0:00:07]} exd5 {[%emt 0:00:28]} 9. Bxd5 {[%emt 0:00:11]} Nxd5 {[%emt 0:00:12]} 10. Qxd5 {[%emt 0:00:12]} Ba6 {[%emt 0:01:04]} 11. Bf4 {[%emt 0:06:38]} Nc6 {[%emt 0:02:26]} 12. Kf2 {[%emt 0:02:10]} Ba5 {[%emt 0:02:59]} 13. Rhd1 {[%emt 0:00:42]} Nb4 {[%emt 0:01:44]} 14. Qd6 {[%emt 0:02:04]} Bb6 {[%emt 0:12:16]} 15. Na4 {[%emt 0:18:27]} Nd3+ {[%emt 0:10:19]} 16. Kg1 {[%emt 0:15:06]} c4+ {[%emt 0:07:25]} 17. Nxb6 {[%emt 0:12:36]} Qxb6+ {[%emt 0:01:33]} 18. Qxb6 {[%emt 0:00:11]} axb6 {[%emt 0:00:06]} 19. Rd2 {[%emt 0:01:31]} Bb7 {[%emt 0:07:12]} 20. Be3 {[%emt 0:04:07]} b5 {[%emt 0:04:33]} 21. Nf2 {[%emt 0:02:49]} Nxf2 {[%emt 0:05:07]} 22. Kxf2 {[%emt 0:00:18]} Bc6 {[%emt 0:01:17]} 23. Bc5 {[%emt 0:03:46]} Rfe8 {[%emt 0:04:12]} 24. Bd6 {[%emt 0:01:34]} f6 {[%emt 0:07:07]} 25. a3 {[%emt 0:01:00]} Kf7 {[%emt 0:02:45]} 26. Rad1 {[%emt 0:02:52]} Kg6 {[%emt 0:07:52]} 27. g4 {[%emt 0:07:11]} Rh8 {[%emt 0:06:51]} 28. Rg1 {[%emt 0:03:09]} h5 {[%emt 0:04:18]} 29. h4 {[%emt 0:01:47]} hxg4 {[%emt 0:01:36]} 30. Rxg4+ {[%emt 0:00:05]} Kf7 {[%emt 0:00:24]} 31. Kg3 {[%emt 0:00:13]} Rag8 {[%emt 0:03:03]} 32. Bb4 {[%emt 0:02:31]} Rh5 {[%emt 0:01:07]} 33. Rd6 {[%emt 0:01:22]} g5 {[%emt 0:02:23]} 34. hxg5 {[%emt 0:01:51]} Rhxg5 {[%emt 0:00:13]} 35. Bc3 {[%emt 0:00:59]} Rxg4+ {[%emt 0:00:29]} 36. fxg4 {[%emt 0:00:10]} Bxe4 {[%emt 0:01:25]} 37. Bxf6 {[%emt 0:02:13]} Bc6 {[%emt 0:00:24]} 38. Kf4 {[%emt 0:00:39]} Re8 {[%emt 0:00:16]} 39. Be5 {[%emt 0:00:15]} Re6 {[%emt 0:00:27]} 40. Rd2 {[%emt 0:01:49]} Kg6 {[%emt 0:01:21]} 41. g5 {[%emt 0:30:38]} d6 {[%emt 0:03:08]} 42. Rxd6 {[%emt 0:00:00]} Rxd6 {[%emt 0:00:06]} 43. Bxd6 {[%emt 0:00:00]} Bd7 {[%emt 0:00:25]} 44. Be7 {[%emt 0:03:10]} 1/2-1/2

[Event "27th OIBM 2024"]
[Site "Gmund am Tegernsee"]
[Date "2024.10.27"]
[Round "2.42"]
[White "Langner, Robin"]
[Black "Schnepp, Gunnar"]
[Result "0-1"]
[ECO "A63"]
[WhiteElo "2006"]
[BlackElo "2243"]
[Annotator "RC"]
[PlyCount "60"]
[EventDate "2024.09.16"]
[EventType "swiss"]
[EventCountry "GER"]
[SourceTitle "playchess.com"]
[Source "ChessBase"]
[SourceQuality "1"]
[TimeControl "40/5400+30:1800+30"]

1. d4 {[%emt 0:00:03]} Nf6 {[%emt 0:00:07]} 2. c4 {[%emt 0:00:04]} e6 {[%emt 0:00:22]} 3. g3 {[%emt 0:00:15]} c5 {[%emt 0:00:20]} 4. d5 {[%emt 0:00:04]} exd5 {[%emt 0:00:08]} 5. cxd5 {[%emt 0:00:05]} d6 {[%emt 0:00:12]} 6. Nc3 {[%emt 0:00:12]} g6 {[%emt 0:00:58]} 7. Bg2 {[%emt 0:00:21]} Bg7 {[%emt 0:00:39]} 8. Nf3 {[%emt 0:00:04]} O-O {[%emt 0:00:20]} 9. O-O {[%emt 0:00:05]} a6 {[%emt 0:00:50]} 10. a4 {[%emt 0:00:17]} Nbd7 {[%emt 0:01:01]} 11. Re1 {[%emt 0:05:24]} Re8 {[%emt 0:00:55]} 12. e4 {[%emt 0:01:16]} c4 {[%emt 0:01:56]} 13. Nd2 {[%emt 0:07:27]} Ne5 {[%emt 0:08:02]} 14. Re3 {[%emt 0:28:02]} Bd7 {[%emt 0:13:59]} 15. a5 {[%emt 0:17:06]} Qc7 {[%emt 0:01:57]} 16. h3 {[%emt 0:04:45]} Qc5 {[%emt 0:03:46]} 17. Na4 {[%emt 0:07:45]} Qxa5 {[%emt 0:10:21]} 18. f4 {[%emt 0:01:03]} Bxa4 {[%emt 0:01:22]} 19. Rxa4 {[%emt 0:00:06]} Qc5 {[%emt 0:02:36]} 20. Qe2 {[%emt 0:01:25]} Nd3 {[%emt 0:03:12]} 21. Rxc4 {[%emt 0:00:56]} Nxc1 {[%emt 0:00:32]} 22. Qf2 {[%emt 0:00:43]} Qb6 {[%emt 0:07:45]} 23. Rxc1 {[%emt 0:01:03]} Qxb2 {[%emt 0:02:38]} 24. Rb1 {[%emt 0:01:33]} Qd4 {[%emt 0:04:11]} 25. Rxb7 {[%emt 0:00:41]} Nxd5 {[%emt 0:00:54]} 26. Ra3 {[%emt 0:04:06]} Nc3 {[%emt 0:11:13]} 27. Bf1 {[%emt 0:05:36]} Nxe4 {[%emt 0:03:00]} 28. Nxe4 {[%emt 0:01:28]} Qxe4 {[%emt 0:03:24]} 29. Qg2 {[%emt 0:01:10]} Qf5 {[%emt 0:04:33]} 30. Bc4 {[%emt 0:02:17]} Qc5+ {[%emt 0:00:34]} 0-1

[Event "27th OIBM 2024"]
[Site "Gmund am Tegernsee"]
[Date "2024.10.27"]
[Round "2.43"]
[White "Sajka, Mariusz"]
[Black "Jahnz, Laurin"]
[Result "1/2-1/2"]
[ECO "B42"]
[WhiteElo "2243"]
[BlackElo "2086"]
[Annotator "RC"]
[PlyCount "62"]
[EventDate "2024.09.16"]
[EventType "swiss"]
[EventCountry "GER"]
[SourceTitle "playchess.com"]
[Source "ChessBase"]
[SourceQuality "1"]
[TimeControl "40/5400+30:1800+30"]

1. e4 {[%emt 0:00:03]} c5 {[%emt 0:00:05]} 2. Nf3 {[%emt 0:00:05]} e6 {[%emt 0:00:04]} 3. d4 {[%emt 0:00:08]} cxd4 {[%emt 0:00:04]} 4. Nxd4 {[%emt 0:00:09]} a6 {[%emt 0:00:03]} 5. Bd3 {[%emt 0:00:15]} Nf6 {[%emt 0:00:09]} 6. O-O {[%emt 0:03:00]} Qc7 {[%emt 0:00:27]} 7. Qe2 {[%emt 0:00:18]} d6 {[%emt 0:00:05]} 8. f4 {[%emt 0:00:30]} g6 {[%emt 0:00:09]} 9. f5 {[%emt 0:06:19]} Bg7 {[%emt 0:00:17]} 10. Kh1 {[%emt 0:04:11]} O-O {[%emt 0:01:29]} 11. Nc3 {[%emt 0:02:51]} Nc6 {[%emt 0:01:46]} 12. Nxc6 {[%emt 0:01:28]} Qxc6 {[%emt 0:08:54]} 13. Bg5 {[%emt 0:06:12]} exf5 {[%emt 0:00:30]} 14. exf5 {[%emt 0:00:30]} Nd5 {[%emt 0:00:30]} 15. Nxd5 {[%emt 0:00:30]} Qxd5 {[%emt 0:00:30]} 16. Bc4 {[%emt 0:00:30]} Qc5 {[%emt 0:00:30]} 17. Be7 {[%emt 0:00:30]} Bxf5 {[%emt 0:00:30]} 18. Bxf8 {[%emt 0:00:30]} Rxf8 {[%emt 0:00:30]} 19. c3 {[%emt 0:00:30]} d5 {[%emt 0:00:30]} 20. Bd3 {[%emt 0:00:30]} Be6 {[%emt 0:00:30]} 21. Rad1 {[%emt 0:00:30]} b5 {[%emt 0:00:30]} 22. a3 {[%emt 0:00:30]} b4 {[%emt 0:00:30]} 23. cxb4 {[%emt 0:00:30]} Qd4 {[%emt 0:00:30]} 24. Bxg6 {[%emt 0:00:30]} Qg4 {[%emt 0:00:30]} 25. Bd3 {[%emt 0:00:30]} Qxe2 {[%emt 0:00:30]} 26. Bxe2 {[%emt 0:00:30]} Bxb2 {[%emt 0:00:30]} 27. Rf3 {[%emt 0:00:30]} Rc8 {[%emt 0:00:30]} 28. Bd3 {[%emt 0:00:30]} Bxa3 {[%emt 0:00:30]} 29. Bxa6 {[%emt 0:00:30]} Bxb4 {[%emt 0:00:30]} 30. Ra3 {[%emt 0:00:30]} d4 {[%emt 0:00:30]} 31. Rxd4 {[%emt 0:00:30]} Bxa3 {[%emt 0:57:32]} 1/2-1/2

[Event "27th OIBM 2024"]
[Site "Gmund am Tegernsee"]
[Date "2024.10.27"]
[Round "2.44"]
[White "Szajbely, Zsigmond"]
[Black "Braeunlin, Herbert"]
[Result "1-0"]
[ECO "B52"]
[WhiteElo "2240"]
[BlackElo "2010"]
[Annotator "RC"]
[PlyCount "47"]
[EventDate "2024.09.16"]
[EventType "swiss"]
[EventCountry "GER"]
[SourceTitle "playchess.com"]
[Source "ChessBase"]
[SourceQuality "1"]
[TimeControl "40/5400+30:1800+30"]

1. e4 {[%emt 0:00:05]} c5 {[%emt 0:00:10]} 2. Nf3 {[%emt 0:00:18]} d6 {[%emt 0:00:09]} 3. Bb5+ {[%emt 0:00:05]} Bd7 {[%emt 0:01:11]} 4. Bxd7+ {[%emt 0:01:42]} Qxd7 {[%emt 0:00:13]} 5. O-O {[%emt 0:00:07]} Nc6 {[%emt 0:00:56]} 6. Re1 {[%emt 0:01:34]} g6 {[%emt 0:00:32]} 7. c3 {[%emt 0:03:00]} Bg7 {[%emt 0:03:16]} 8. d4 {[%emt 0:01:11]} cxd4 {[%emt 0:00:40]} 9. cxd4 {[%emt 0:00:16]} e6 {[%emt 0:00:57]} 10. Nc3 {[%emt 0:02:41]} Nge7 {[%emt 0:01:59]} 11. Rb1 {[%emt 0:26:05]} O-O {[%emt 0:15:03]} 12. b4 {[%emt 0:01:02]} Rac8 {[%emt 0:01:37]} 13. Qd3 {[%emt 0:00:28]} d5 {[%emt 0:09:23]} 14. e5 {[%emt 0:11:08]} f6 {[%emt 0:04:54]} 15. b5 {[%emt 0:00:49]} Nd8 {[%emt 0:01:39]} 16. exf6 {[%emt 0:04:44]} Bxf6 {[%emt 0:03:36]} 17. Bh6 {[%emt 0:10:41]} Re8 {[%emt 0:00:29]} 18. Ne5 {[%emt 0:06:47]} Qc7 {[%emt 0:09:57]} 19. Rbc1 {[%emt 0:01:55]} Bxe5 {[%emt 0:01:27]} 20. dxe5 {[%emt 0:00:06]} Qc4 {[%emt 0:00:41]} 21. Qd2 {[%emt 0:05:36]} Qg4 {[%emt 0:27:58]} 22. Ne4 {[%emt 0:01:39]} dxe4 {[%emt 0:00:04]} 23. Rxc8 {[%emt 0:00:08]} Nd5 {[%emt 0:02:07]} 24. Qg5 {[%emt 0:20:23]} 1-0

[Event "27th OIBM 2024"]
[Site "Gmund am Tegernsee"]
[Date "2024.10.27"]
[Round "2.45"]
[White "Oyberman, Mikhail"]
[Black "Georgescu, Lena"]
[Result "0-1"]
[ECO "B51"]
[WhiteElo "2000"]
[BlackElo "2236"]
[Annotator "RC"]
[PlyCount "58"]
[EventDate "2024.09.16"]
[EventType "swiss"]
[EventCountry "GER"]
[SourceTitle "playchess.com"]
[Source "ChessBase"]
[SourceQuality "1"]
[TimeControl "40/5400+30:1800+30"]

1. e4 {[%emt 0:00:11]} c5 {[%emt 0:00:05]} 2. Nf3 {[%emt 0:00:05]} d6 {[%emt 0:00:06]} 3. Bb5+ {[%emt 0:02:56]} Nd7 {[%emt 0:00:04]} 4. d4 {[%emt 0:00:50]} cxd4 {[%emt 0:00:05]} 5. Nxd4 {[%emt 0:00:04]} a6 {[%emt 0:01:39]} 6. Bd3 {[%emt 0:00:06]} Ngf6 {[%emt 0:01:22]} 7. O-O {[%emt 0:00:11]} g6 {[%emt 0:03:56]} 8. Nc3 {[%emt 0:00:20]} Bg7 {[%emt 0:00:19]} 9. Bg5 {[%emt 0:03:10]} Qb6 {[%emt 0:16:01]} 10. Nb3 {[%emt 0:00:24]} Qc7 {[%emt 0:00:56]} 11. Qd2 {[%emt 0:01:24]} b5 {[%emt 0:06:15]} 12. Rfe1 {[%emt 0:01:07]} Bb7 {[%emt 0:01:22]} 13. a3 {[%emt 0:08:23]} O-O {[%emt 0:02:36]} 14. Bh6 {[%emt 0:01:33]} Ne5 {[%emt 0:05:45]} 15. Bxg7 {[%emt 0:00:50]} Kxg7 {[%emt 0:00:05]} 16. h3 {[%emt 0:00:49]} Rac8 {[%emt 0:08:34]} 17. Nd4 {[%emt 0:01:41]} h6 {[%emt 0:11:10]} 18. Re3 {[%emt 0:03:03]} Qb6 {[%emt 0:03:27]} 19. Nde2 {[%emt 0:07:17]} Nc4 {[%emt 0:02:55]} 20. Bxc4 {[%emt 0:00:07]} Rxc4 {[%emt 0:00:12]} 21. Nd5 {[%emt 0:05:00]} Bxd5 {[%emt 0:03:43]} 22. exd5 {[%emt 0:00:24]} Re4 {[%emt 0:04:48]} 23. Nc3 {[%emt 0:05:26]} Rxe3 {[%emt 0:00:15]} 24. Qxe3 {[%emt 0:00:07]} Qxe3 {[%emt 0:00:21]} 25. fxe3 {[%emt 0:00:02]} Rc8 {[%emt 0:01:05]} 26. Rd1 {[%emt 0:00:54]} Nd7 {[%emt 0:06:57]} 27. Rd4 {[%emt 0:01:00]} Nb6 {[%emt 0:00:59]} 28. Kf2 {[%emt 0:00:52]} Nc4 {[%emt 0:04:20]} 29. Nd1 {[%emt 0:00:10]} Nxb2 {[%emt 0:00:41]} 0-1

[Event "27th OIBM 2024"]
[Site "Gmund am Tegernsee"]
[Date "2024.10.27"]
[Round "2.46"]
[White "Acarbay, Algi"]
[Black "Zheng, Harry Z"]
[Result "0-1"]
[ECO "D00"]
[WhiteElo "1986"]
[BlackElo "2232"]
[Annotator "RC"]
[PlyCount "119"]
[EventDate "2024.09.16"]
[EventType "swiss"]
[EventCountry "GER"]
[SourceTitle "playchess.com"]
[Source "ChessBase"]
[SourceQuality "1"]
[TimeControl "40/5400+30:1800+30"]

1. d4 {[%emt 0:00:06]} Nf6 {[%emt 0:00:14]} 2. Nc3 {[%emt 0:00:09]} d5 {[%emt 0:00:12]} 3. Bf4 {[%emt 0:00:12]} a6 {[%emt 0:00:11]} 4. e3 {[%emt 0:00:08]} b5 {[%emt 0:01:37]} 5. a3 {[%emt 0:00:40]} e6 {[%emt 0:02:35]} 6. b4 {[%emt 0:01:24]} Nbd7 {[%emt 0:02:18]} 7. Nf3 {[%emt 0:01:39]} Be7 {[%emt 0:02:23]} 8. Bd3 {[%emt 0:10:10]} Bb7 {[%emt 0:05:21]} 9. Ne5 {[%emt 0:06:36]} O-O {[%emt 0:03:53]} 10. Qf3 {[%emt 0:02:47]} Nxe5 {[%emt 0:13:37]} 11. dxe5 {[%emt 0:02:04]} Nd7 {[%emt 0:06:18]} 12. Qh3 {[%emt 0:21:40]} g6 {[%emt 0:02:20]} 13. Bh6 {[%emt 0:10:02]} Re8 {[%emt 0:00:55]} 14. Qg3 {[%emt 0:01:45]} Nxe5 {[%emt 0:08:44]} 15. Rd1 {[%emt 0:12:19]} Bh4 {[%emt 0:10:18]} 16. Qxe5 {[%emt 0:08:18]} Bf6 {[%emt 0:00:09]} 17. Qg3 {[%emt 0:00:37]} Bxc3+ {[%emt 0:00:11]} 18. Ke2 {[%emt 0:01:07]} Qd6 {[%emt 0:03:27]} 19. Qg4 {[%emt 0:06:30]} c5 {[%emt 0:01:55]} 20. bxc5 {[%emt 0:01:46]} Qxc5 {[%emt 0:00:09]} 21. h4 {[%emt 0:01:57]} e5 {[%emt 0:01:48]} 22. Kf1 {[%emt 0:07:47]} e4 {[%emt 0:09:10]} 23. Be2 {[%emt 0:00:01]} Qxa3 {[%emt 0:02:26]} 24. h5 {[%emt 0:00:36]} Qe7 {[%emt 0:00:33]} 25. hxg6 {[%emt 0:01:18]} fxg6 {[%emt 0:00:11]} 26. Qh3 {[%emt 0:01:12]} Bc8 {[%emt 0:01:49]} 27. Qg3 {[%emt 0:00:27]} Be5 {[%emt 0:02:32]} 28. Bf4 {[%emt 0:00:26]} Bxf4 {[%emt 0:00:22]} 29. Qxf4 {[%emt 0:00:05]} Rf8 {[%emt 0:00:20]} 30. Qh6 {[%emt 0:00:30]} Be6 {[%emt 0:00:30]} 31. Rh4 {[%emt 0:00:48]} Rf7 {[%emt 0:02:26]} 32. g3 {[%emt 0:00:35]} Qf8 {[%emt 0:01:17]} 33. Qxf8+ {[%emt 0:00:15]} Raxf8 {[%emt 0:00:59]} 34. Rf4 {[%emt 0:00:39]} Rxf4 {[%emt 0:00:27]} 35. gxf4 {[%emt 0:00:35]} Rc8 {[%emt 0:00:12]} 36. Ra1 {[%emt 0:00:35]} Rc6 {[%emt 0:00:07]} 37. Ra5 {[%emt 0:00:39]} Kf7 {[%emt 0:00:44]} 38. Ke1 {[%emt 0:00:07]} Ke7 {[%emt 0:00:18]} 39. Kd2 {[%emt 0:00:12]} Kd6 {[%emt 0:00:28]} 40. c3 {[%emt 0:00:25]} Kc5 {[%emt 0:01:17]} 41. Ra1 {[%emt 0:30:31]} Bf5 {[%emt 0:31:11]} 42. Kc2 {[%emt 0:00:00]} h5 {[%emt 0:00:00]} 43. Rh1 {[%emt 0:00:00]} Kb6 {[%emt 0:00:00]} 44. Kb3 {[%emt 0:00:00]} a5 {[%emt 0:00:00]} 45. Rd1 {[%emt 0:00:00]} Be6 {[%emt 0:00:00]} 46. Rd4 {[%emt 0:00:00]} h4 {[%emt 0:00:00]} 47. Kb2 {[%emt 0:00:00]} h3 {[%emt 0:00:00]} 48. Rd1 {[%emt 0:00:00]} Rc7 {[%emt 0:00:00]} 49. Rh1 {[%emt 0:00:00]} b4 {[%emt 0:00:00]} 50. cxb4 {[%emt 0:00:00]} axb4 {[%emt 0:00:00]} 51. Bf1 {[%emt 0:00:00]} Rh7 {[%emt 0:00:00]} 52. Be2 {[%emt 0:00:00]} d4 {[%emt 0:00:00]} 53. exd4 {[%emt 0:00:00]} Ra7 {[%emt 0:00:00]} 54. Bf1 {[%emt 0:00:00]} Ra2+ {[%emt 0:00:00]} 55. Kb1 {[%emt 0:00:00]} Rxf2 {[%emt 0:00:00]} 56. Bxh3 {[%emt 0:00:00]} Bc4 {[%emt 0:00:00]} 57. Rg1 {[%emt 0:00:00]} Bd3+ {[%emt 0:00:00]} 58. Kc1 {[%emt 0:00:00]} b3 {[%emt 0:00:00]} 59. Rxg6+ {[%emt 0:00:00]} Ka5 {[%emt 0:00:00]} 60. Rg5+ {[%emt 0:00:00]} 0-1